lending/lending_fUSD_20241212
["ID","MTS","AMOUNT","RATE_DAILY","PERIOD"]
[345083773,1733991264863,-354.360571,0.00012329,2]
[345083774,1733991264894,-354.360571,0.00012329,2]
[345083775,1733991264921,-354.360571,0.00012329,2]
[345083776,1733991264948,-354.360571,0.00012329,2]
[345083777,1733991264974,-354.360571,0.00012329,2]
[345083778,1733991265000,-354.360571,0.00012329,2]
[345083779,1733991265027,-354.360571,0.00012329,2]
[345083780,1733991265056,-1135.323614,0.00012329,2]
[345083781,1733991265084,-1135.323614,0.00012329,2]
[345083782,1733991265111,-1135.323614,0.00012329,2]
[345083783,1733991265138,-1135.323614,0.00012329,2]
[345083784,1733991265166,-4608.807587,0.00012329,2]
[345083785,1733991265196,-4608.807587,0.00012329,2]
[345083786,1733991265224,-4608.807587,0.00012329,2]
[345083787,1733991265251,-4608.807587,0.00012329,2]
[345083788,1733991265278,-1135.323614,0.00012329,2]
[345083789,1733991265306,-1135.323614,0.00012329,2]
[345083790,1733991265332,-1135.323614,0.00012329,2]
[345083791,1733991265360,-1135.323614,0.00012329,2]
[345083792,1733991265386,-4608.807587,0.00012329,2]
[345083793,1733991265412,-4608.807587,0.00012329,2]
[345083794,1733991265438,-4608.807587,0.00012329,2]
[345083795,1733991265467,-4608.807587,0.00012329,2]
[345083796,1733991265494,-688.232667,0.00012329,2]
[345083797,1733991265524,-688.232667,0.00012329,2]
[345083798,1733991265550,-688.232667,0.00012329,2]
[345083799,1733991265577,-688.232667,0.00012329,2]
[345083800,1733991265603,-688.232667,0.00012329,2]
[345083801,1733991265629,-688.232667,0.00012329,2]
[345083802,1733991265656,-688.232667,0.00012329,2]
[345083803,1733991265682,-688.232667,0.00012329,2]
[345083804,1733991265709,-151.0,0.00012329,2]
[345083805,1733991265735,-151.0,0.00012329,2]
[345083806,1733991265761,-151.0,0.00012329,2]
[345083807,1733991265792,-151.0,0.00012329,2]
[345083808,1733991265819,-151.0,0.00012329,2]
[345083809,1733991265846,-151.0,0.00012329,2]
[345083810,1733991265873,-151.0,0.00012329,2]
[345083811,1733991265900,-151.0,0.00012329,2]
[345083812,1733991265928,-151.0,0.00012329,2]
[345083813,1733991265958,-151.0,0.00012329,2]
[345083814,1733991265986,-151.0,0.00012329,2]
[345083815,1733991266014,-151.0,0.00012329,2]
[345083816,1733991266045,-501.256449,0.00012329,2]
[345083817,1733991266073,-501.256449,0.00012329,2]
[345083818,1733991266100,-501.256449,0.00012329,2]
[345083819,1733991266128,-501.256449,0.00012329,2]
[345083820,1733991266155,-501.256449,0.00012329,2]
[345083821,1733991266183,-501.256449,0.00012329,2]
[345083822,1733991266210,-501.256449,0.00012329,2]
[345083823,1733991266239,-501.256449,0.00012329,2]
[345083824,1733991266266,-217.28899,0.00012329,2]
[345083825,1733991266297,-217.28899,0.00012329,2]
[345083826,1733991266326,-217.28899,0.00012329,2]
[345083827,1733991266354,-217.28899,0.00012329,2]
[345083828,1733991266382,-217.28899,0.00012329,2]
[345083829,1733991266409,-217.28899,0.00012329,2]
[345083830,1733991266437,-217.28899,0.00012329,2]
[345083831,1733991266466,-217.28899,0.00012329,2]
[345083832,1733991266493,-6360.114479,0.00012329,2]
[345083833,1733991266523,-6360.114479,0.00012329,2]
[345083834,1733991266551,-6360.114479,0.00012329,2]
[345083835,1733991266579,-6360.114479,0.00012329,2]
[345083836,1733991266606,-6360.114479,0.00012329,2]
[345083837,1733991266633,-6360.114479,0.00012329,2]
[345083838,1733991266664,-6360.114479,0.00012329,2]
[345083839,1733991266691,-6360.114479,0.00012329,2]
[345083840,1733991266720,-151.0,0.00012329,2]
[345083841,1733991266747,-151.0,0.00012329,2]
[345083842,1733991266777,-151.0,0.00012329,2]
[345083843,1733991266806,-151.0,0.00012329,2]
[345083844,1733991266834,-151.0,0.00012329,2]
[345083845,1733991266862,-151.0,0.00012329,2]
[345083846,1733991266889,-151.0,0.00012329,2]
[345083847,1733991266919,-151.0,0.00012329,2]
[345083848,1733991266948,-151.0,0.00012329,2]
[345083849,1733991266976,-151.0,0.00012329,2]
[345083850,1733991267003,-151.377475,0.00012329,2]
[345083851,1733991267032,-386.992388,0.00012329,2]
[345083852,1733991267061,-386.992388,0.00012329,2]
[345083853,1733991267089,-386.992388,0.00012329,2]
[345083854,1733991267118,-386.992388,0.00012329,2]
[345083855,1733991267146,-386.992388,0.00012329,2]
[345083856,1733991267176,-386.992388,0.00012329,2]
[345083857,1733991267204,-386.992388,0.00012329,2]
[345083858,1733991267233,-386.992388,0.00012329,2]
[345083859,1733991267261,-331.314365,0.00012329,2]
[345083860,1733991267292,-331.314365,0.00012329,2]
[345083861,1733991267320,-331.314365,0.00012329,2]
[345083862,1733991267485,-331.314365,0.00012329,2]
[345083863,1733991267514,-1736.021266,0.00012329,2]
[345083864,1733991267548,-1736.021266,0.00012329,2]
[345083865,1733991267583,-1736.021266,0.00012329,2]
[345083866,1733991267611,-331.314365,0.00012329,2]
[345083867,1733991267644,-1736.021266,0.00012329,2]
[345083868,1733991267673,-331.314365,0.00012329,2]
[345083869,1733991267701,-331.314365,0.00012329,2]
[345083870,1733991267731,-331.314365,0.00012329,2]
[345083871,1733991267760,-1736.021266,0.00012329,2]
[345083872,1733991267797,-1736.021266,0.00012329,2]
[345083873,1733991267826,-1736.021266,0.00012329,2]
[345083874,1733991267855,-1736.021266,0.00012329,2]
[345083875,1733991267885,-958.818168,0.00012329,2]
[345083876,1733991267914,-958.818168,0.00012329,2]
[345083877,1733991267943,-958.818168,0.00012329,2]
[345083878,1733991267972,-958.818168,0.00012329,2]
[345083879,1733991268000,-686.10086,0.00012329,2]
[345083880,1733991268030,-686.10086,0.00012329,2]
[345083881,1733991268059,-686.10086,0.00012329,2]
[345083882,1733991268089,-686.10086,0.00012329,2]
[345083883,1733991268119,-958.818168,0.00012329,2]
[345083884,1733991268149,-958.818168,0.00012329,2]
[345083885,1733991268182,-958.818168,0.00012329,2]
[345083886,1733991268211,-958.818168,0.00012329,2]
[345083887,1733991268240,-686.10086,0.00012329,2]
[345083888,1733991268276,-686.10086,0.00012329,2]
[345083889,1733991268305,-686.10086,0.00012329,2]
[345083890,1733991268334,-686.10086,0.00012329,2]
[345083891,1733991268362,-303.312241,0.00012329,2]
[345083892,1733991268391,-303.312241,0.00012329,2]
[345083893,1733991268417,-151.351362,0.00012329,2]
[345083894,1733991268450,-393.14077,0.00012329,2]
[345083895,1733991268478,-393.14077,0.00012329,2]
[345083896,1733991268505,-393.14077,0.00012329,2]
[345083897,1733991268539,-393.14077,0.00012329,2]
[345083898,1733991268566,-267.79821,0.00012329,2]
[345083899,1733991268594,-267.79821,0.00012329,2]
[345083900,1733991268622,-267.79821,0.00012329,2]
[345083901,1733991268650,-267.79821,0.00012329,2]
[345083902,1733991268677,-933.335307,0.00012329,2]
[345083903,1733991268704,-933.335307,0.00012329,2]
[345083904,1733991268732,-933.335307,0.00012329,2]
[345083905,1733991268758,-933.335307,0.00012329,2]
[345083906,1733991268788,-413.684822,0.00012329,2]
[345083907,1733991268814,-413.684822,0.00012329,2]
[345083908,1733991268840,-151.0,0.00012329,2]
[345083909,1733991268866,-151.0,0.00012329,2]
[345083910,1733991268893,-413.684822,0.00012329,2]
[345083911,1733991268920,-413.684822,0.00012329,2]
[345083912,1733991268946,-151.0,0.00012329,2]
[345083913,1733991268971,-151.0,0.00012329,2]
[345083914,1733991268996,-1031.685249,0.00012329,2]
[345083915,1733991269026,-1031.685249,0.00012329,2]
[345083916,1733991269051,-1031.685249,0.00012329,2]
[345083917,1733991269076,-1031.685249,0.00012329,2]
[345083918,1733991269102,-239.697637,0.00012329,2]
[345083919,1733991269127,-239.697637,0.00012329,2]
[345083920,1733991269152,-239.697637,0.00012329,2]
[345083921,1733991269182,-239.697637,0.00012329,2]
[345083922,1733991269208,-398.410557,0.00012329,2]
[345083923,1733991269234,-398.410557,0.00012329,2]
[345083924,1733991269259,-398.410557,0.00012329,2]
[345083925,1733991269288,-398.410557,0.00012329,2]
[345083926,1733991269313,-151.223206,0.00012329,2]
[345083927,1733991269337,-499.601344,0.00012329,2]
[345083928,1733991269359,-499.601344,0.00012329,2]
[345083929,1733991269381,-499.601344,0.00012329,2]
[345083930,1733991269404,-499.601344,0.00012329,2]
[345083931,1733991269427,-151.0,0.00012329,2]
[345083932,1733991269451,-151.0,0.00012329,2]
[345083933,1733991269476,-350.0,0.00012329,2]
[345083934,1733991269499,-350.0,0.00012329,2]
[345083935,1733991269526,-151.0,0.00012329,2]
[345083936,1733991269549,-151.0,0.00012329,2]
[345083937,1733991269575,-151.0,0.00012329,2]
[345083938,1733991269599,-152.266563,0.00012329,2]
[345083939,1733991269623,-281.936274,0.00012329,2]
[345083940,1733991269646,-281.936274,0.00012329,2]
[345083941,1733991269668,-2293.737033,0.00012329,2]
[345083942,1733991269693,-387.285551,0.00012329,2]
[345083943,1733991269717,-387.285551,0.00012329,2]
[345083944,1733991269744,-387.285551,0.00012329,2]
[345083945,1733991269774,-387.285551,0.00012329,2]
[345083946,1733991269801,-163.836253,0.00012329,2]
[345083947,1733991269828,-163.836253,0.00012329,2]
[345083948,1733991269855,-163.836253,0.00012329,2]
[345083949,1733991269882,-163.836253,0.00012329,2]
[345083950,1733991269908,-3318.243705,0.00012329,2]
[345083951,1733991269936,-3318.243705,0.00012329,2]
[345083952,1733991269963,-3318.243705,0.00012329,2]
[345083953,1733991269989,-3318.243705,0.00012329,2]
[345083954,1733991270017,-151.0,0.00012329,2]
[345083955,1733991270049,-151.0,0.00012329,2]
[345083956,1733991270076,-2925.510518,0.00012329,2]
[345083957,1733991270104,-2925.510518,0.00012329,2]
[345083958,1733991270131,-151.0,0.00012329,2]
[345083959,1733991270159,-323.131063,0.00012329,2]
[345083960,1733991270187,-261.81337,0.00012329,2]
[345083961,1733991270213,-261.81337,0.00012329,2]
[345083962,1733991270371,-261.81337,0.00012329,2]
[345083963,1733991270400,-261.81337,0.00012329,2]
[345083964,1733991270428,-1060.21521,0.00012329,2]
[345083965,1733991270454,-1060.21521,0.00012329,2]
[345083966,1733991270482,-1060.21521,0.00012329,2]
[345083967,1733991270507,-1060.21521,0.00012329,2]
[345083968,1733991270536,-338.719013,0.00012329,2]
[345083969,1733991270564,-151.0,0.00012329,2]
[345083970,1733991270589,-338.719013,0.00012329,2]
[345083971,1733991270615,-151.0,0.00012329,2]
[345083972,1733991270640,-196.812283,0.00012329,2]
[345083973,1733991270667,-384.175352,0.00012329,2]
[345083974,1733991270693,-384.175352,0.00012329,2]
[345083975,1733991270719,-10000.0,0.00012329,2]
[345083976,1733991270745,-10000.0,0.00012329,2]
[345083977,1733991270773,-10000.0,0.00012329,2]
[345083978,1733991270798,-288.367229,0.00012329,2]
[345083979,1733991270823,-288.367229,0.00012329,2]
[345083980,1733991270848,-151.0,0.00012329,2]
[345083981,1733991270874,-217.490043,0.00012329,2]
[345083982,1733991270899,-217.490043,0.00012329,2]
[345083983,1733991270933,-230.17863,0.00012329,2]
[345083984,1733991270958,-230.17863,0.00012329,2]
[345083985,1733991270984,-151.0,0.00012329,2]
[345083986,1733991271013,-354.360571,0.00012329,2]
[345083987,1733991271045,-354.360571,0.00012329,2]
[345083988,1733991271078,-1135.323614,0.00012329,2]
[345083989,1733991271114,-4608.807587,0.00012329,2]
[345083990,1733991271144,-1135.323614,0.00012329,2]
[345083991,1733991271172,-4608.807587,0.00012329,2]
[345083992,1733991271204,-688.232667,0.00012329,2]
[345083993,1733991271231,-688.232667,0.00012329,2]
[345083994,1733991271259,-688.232667,0.00012329,2]
[345083995,1733991271291,-688.232667,0.00012329,2]
[345083996,1733991271318,-151.0,0.00012329,2]
[345083997,1733991271344,-151.0,0.00012329,2]
[345083998,1733991271371,-151.0,0.00012329,2]
[345083999,1733991271397,-501.256449,0.00012329,2]
[345084000,1733991271424,-501.256449,0.00012329,2]
[345084001,1733991271451,-217.28899,0.00012329,2]
[345084002,1733991271477,-217.28899,0.00012329,2]
[345084003,1733991271503,-6360.114479,0.00012329,2]
[345084004,1733991271530,-6360.114479,0.00012329,2]
[345084005,1733991271557,-151.0,0.00012329,2]
[345084006,1733991271587,-151.0,0.00012329,2]
[345084007,1733991271615,-386.992388,0.00012329,2]
[345084008,1733991271643,-386.992388,0.00012329,2]
[345084009,1733991271669,-331.314365,0.00012329,2]
[345084010,1733991271695,-1736.021266,0.00012329,2]
[345084011,1733991271722,-331.314365,0.00012329,2]
[345084012,1733991271750,-1736.021266,0.00012329,2]
[345084013,1733991271780,-958.818168,0.00012329,2]
[345084014,1733991271808,-686.10086,0.00012329,2]
[345084015,1733991271836,-958.818168,0.00012329,2]
[345084016,1733991271864,-686.10086,0.00012329,2]
[345084017,1733991271892,-152.0,0.00012342,6]
[345084018,1733991271919,-1018385.7433452,0.00012399,2]
[345084019,1733991271945,-246573.92268201,0.00012399,2]
[345084020,1733991271973,-303.312241,0.00012399,2]
[345084021,1733991272000,-393.14077,0.00012399,2]
[345084022,1733991272031,-393.14077,0.00012399,2]
[345084023,1733991272059,-267.79821,0.00012399,2]
[345084024,1733991272086,-267.79821,0.00012399,2]
[345084025,1733991272113,-933.335307,0.00012399,2]
[345084026,1733991272140,-933.335307,0.00012399,2]
[345084027,1733991272167,-413.684822,0.00012399,2]
[345084028,1733991272199,-151.0,0.00012399,2]
[345084029,1733991272227,-413.684822,0.00012399,2]
[345084030,1733991272257,-200.063966,0.00012399,2]
[345084031,1733991272290,-1031.685249,0.00012399,2]
[345084032,1733991272317,-1031.685249,0.00012399,2]
[345084033,1733991272344,-239.697637,0.00012399,2]
[345084034,1733991272370,-239.697637,0.00012399,2]
[345084035,1733991272396,-398.410557,0.00012399,2]
[345084036,1733991272422,-398.410557,0.00012399,2]
[345084037,1733991272448,-499.601344,0.00012399,2]
[345084038,1733991272474,-499.601344,0.00012399,2]
[345084039,1733991272500,-151.0,0.00012399,2]
[345084040,1733991272530,-350.0,0.00012399,2]
[345084041,1733991272557,-350.0,0.00012399,2]
[345084042,1733991272583,-151.0,0.00012399,2]
[345084043,1733991272610,-281.936274,0.00012399,2]
[345084044,1733991272637,-281.936274,0.00012399,2]
[345084045,1733991272663,-2293.737033,0.00012399,2]
[345084046,1733991272688,-387.285551,0.00012399,2]
[345084047,1733991272715,-387.285551,0.00012399,2]
[345084048,1733991272741,-163.836253,0.00012399,2]
[345084049,1733991272767,-163.836253,0.00012399,2]
[345084050,1733991272800,-3318.243705,0.00012399,2]
[345084051,1733991272828,-3318.243705,0.00012399,2]
[345084052,1733991272855,-151.0,0.00012399,2]
[345084053,1733991272882,-2925.510518,0.00012399,2]
[345084054,1733991272909,-2925.510518,0.00012399,2]
[345084055,1733991272936,-151.0,0.00012399,2]
[345084056,1733991272962,-323.131063,0.00012399,2]
[345084057,1733991272989,-261.81337,0.00012399,2]
[345084058,1733991273200,-261.81337,0.00012399,2]
[345084059,1733991273232,-1060.21521,0.00012399,2]
[345084060,1733991273264,-338.719013,0.00012399,2]
[345084061,1733991273301,-1060.21521,0.00012399,2]
[345084062,1733991273334,-151.0,0.00012399,2]
[345084063,1733991273367,-338.719013,0.00012399,2]
[345084064,1733991273398,-151.0,0.00012399,2]
[345084065,1733991273430,-384.175352,0.00012399,2]
[345084066,1733991273461,-384.175352,0.00012399,2]
[345084067,1733991273492,-10000.0,0.00012399,2]
[345084068,1733991273526,-10000.0,0.00012399,2]
[345084069,1733991273558,-288.367229,0.00012399,2]
[345084070,1733991273590,-288.367229,0.00012399,2]
[345084071,1733991273621,-151.0,0.00012399,2]
[345084072,1733991273654,-217.490043,0.00012399,2]
[345084073,1733991273685,-217.490043,0.00012399,2]
[345084074,1733991273717,-230.17863,0.00012399,2]
[345084075,1733991273749,-230.17863,0.00012399,2]
[345084076,1733991273781,-151.0,0.00012399,2]
[345084077,1733991273812,-354.360571,0.00012399,2]
[345084078,1733991273843,-354.360571,0.00012399,2]
[345084079,1733991273874,-1135.323614,0.00012399,2]
[345084080,1733991273905,-4608.807587,0.00012399,2]
[345084081,1733991273937,-1135.323614,0.00012399,2]
[345084082,1733991273968,-4608.807587,0.00012399,2]
[345084083,1733991274000,-688.232667,0.00012399,2]
[345084084,1733991274032,-688.232667,0.00012399,2]
[345084085,1733991274070,-282.001987,0.00012399,2]
[345084086,1733991274101,-152.100351,0.00012399,2]
[345084087,1733991274132,-151.0,0.00012399,2]
[345084088,1733991274164,-501.256449,0.00012399,2]
[345084089,1733991274199,-501.256449,0.00012399,2]
[345084090,1733991274230,-217.28899,0.00012399,2]
[345084091,1733991274262,-217.28899,0.00012399,2]
[345084092,1733991274300,-6360.114479,0.00012399,2]
[345084093,1733991274331,-6360.114479,0.00012399,2]
[345084094,1733991274365,-151.0,0.00012399,2]
[345084095,1733991274395,-151.0,0.00012399,2]
[345084096,1733991274426,-386.992388,0.00012399,2]
[345084097,1733991274456,-386.992388,0.00012399,2]
[345084098,1733991274487,-331.314365,0.00012399,2]
[345084099,1733991274520,-1736.021266,0.00012399,2]
[345084100,1733991274562,-331.314365,0.00012399,2]
[345084101,1733991274598,-1736.021266,0.00012399,2]
[345084102,1733991274631,-958.818168,0.00012399,2]
[345084103,1733991274663,-686.10086,0.00012399,2]
[345084104,1733991274693,-958.818168,0.00012399,2]
[345084105,1733991274724,-686.10086,0.00012399,2]
[345084106,1733991274754,-500.0,0.000124,4]
[345084107,1733991274789,-500.0,0.00012424,2]
[345084108,1733991274819,-1424.76545324,0.000125,2]
[345084109,1733991274848,-243.59709501,0.00012535,5]
[345084110,1733991274877,-500.0,0.00012561,2]
[345084111,1733991274907,-61595.64,0.00012603,2]
[345084112,1733991274937,-2676.17,0.00012658,2]
[345084113,1733991274965,-16116.64725005,0.00012665,2]
[345084114,1733991274994,-531.7386666,0.00012698,2]
[345084115,1733991275023,-166.04,0.00012734,2]
[345084116,1733991275059,-901.72,0.00012748,2]
[345084117,1733991275087,-5000.0,0.00012748,7]
[345084118,1733991275116,-152.0,0.00012769,7]
[345084119,1733991275146,-963.81,0.00012804,2]
[345084120,1733991275177,-1000.0,0.00012841,2]
[345084121,1733991275206,-150.1770967,0.0001288,2]
[345084122,1733991275236,-161.69930078,0.0001288,2]
[345084123,1733991275269,-150.0,0.0001288,2]
[345084124,1733991275302,-150.0,0.0001288,2]
[345084125,1733991275330,-500.0,0.0001288,2]
[345084126,1733991275358,-500.0,0.0001288,2]
[345084127,1733991275386,-242.20166305,0.0001288,2]
[345084128,1733991275414,-500.0,0.0001288,2]
[345084129,1733991275442,-500.0,0.0001288,2]
[345084130,1733991275469,-150.0,0.0001288,2]
[345084131,1733991275498,-2691.0,0.0001288,2]
[345084132,1733991275528,-500.0,0.0001288,2]
[345084133,1733991275556,-815.49677791,0.00013,2]
[345084134,1733991275583,-4220.15014426,0.00013,2]
[345084135,1733991275610,-18191389.29253531,0.00013,2]
[345084136,1733991275638,-635.17723223,0.00013,2]
[345084137,1733991275666,-21533.23391147,0.00013,2]
[345084138,1733991275695,-410.96,0.00013,2]
[345084139,1733991275721,-500.0,0.00013,3]
[345084140,1733991275748,-450.0,0.00013,2]
[345084141,1733991275777,-450.0,0.00013,2]
[345084142,1733991275804,-303.312241,0.00013,2]
[345084143,1733991275831,-393.14077,0.00013,2]
[345084144,1733991275860,-393.14077,0.00013,2]
[345084145,1733991275887,-267.79821,0.00013,2]
[345084146,1733991275915,-267.79821,0.00013,2]
[345084147,1733991275945,-933.335307,0.00013,2]
[345084148,1733991275972,-933.335307,0.00013,2]
[345084149,1733991276001,-413.684822,0.00013,2]
[345084150,1733991276031,-151.0,0.00013,2]
[345084151,1733991276198,-413.684822,0.00013,2]
[345084152,1733991276230,-1031.685249,0.00013,2]
[345084153,1733991276262,-1031.685249,0.00013,2]
[345084154,1733991276296,-239.697637,0.00013,2]
[345084155,1733991276326,-239.697637,0.00013,2]
[345084156,1733991276355,-277760.9,0.00013,2]
[345084157,1733991276384,-398.410557,0.00013,2]
[345084158,1733991276413,-398.410557,0.00013,2]
[345084159,1733991276442,-499.601344,0.00013,2]
[345084160,1733991276472,-499.601344,0.00013,2]
[345084161,1733991276503,-151.0,0.00013,2]
[345084162,1733991276534,-350.0,0.00013,2]
[345084163,1733991276563,-350.0,0.00013,2]
[345084164,1733991276591,-151.30885,0.00013,2]
[345084165,1733991276619,-281.936274,0.00013,2]
[345084166,1733991276649,-281.936274,0.00013,2]
[345084167,1733991276678,-2293.737033,0.00013,2]
[345084168,1733991276705,-387.285551,0.00013,2]
[345084169,1733991276733,-387.285551,0.00013,2]
[345084170,1733991276762,-163.836253,0.00013,2]
[345084171,1733991276790,-163.836253,0.00013,2]
[345084172,1733991276818,-3318.243705,0.00013,2]
[345084173,1733991276851,-3318.243705,0.00013,2]
[345084174,1733991276880,-151.0,0.00013,2]
[345084175,1733991276908,-1358.0,0.00013,2]
[345084176,1733991276938,-2925.510518,0.00013,2]
[345084177,1733991276968,-2925.510518,0.00013,2]
[345084178,1733991276997,-152.264747,0.00013,2]
[345084179,1733991277025,-323.131063,0.00013,2]
[345084180,1733991277057,-261.81337,0.00013,2]
[345084181,1733991277085,-261.81337,0.00013,2]
[345084182,1733991277113,-1060.21521,0.00013,2]
[345084183,1733991277143,-338.719013,0.00013,2]
[345084184,1733991277174,-1060.21521,0.00013,2]
[345084185,1733991277218,-151.0,0.00013,2]
[345084186,1733991277247,-338.719013,0.00013,2]
[345084187,1733991277279,-151.0,0.00013,2]
[345084188,1733991277308,-384.175352,0.00013,2]
[345084189,1733991277337,-384.175352,0.00013,2]
[345084190,1733991277367,-10000.0,0.00013,2]
[345084191,1733991277397,-10000.0,0.00013,2]
[345084192,1733991277427,-288.367229,0.00013,2]
[345084193,1733991277456,-288.367229,0.00013,2]
[345084194,1733991277484,-151.0,0.00013,2]
[345084195,1733991277511,-217.490043,0.00013,2]
[345084196,1733991277542,-217.490043,0.00013,2]
[345084197,1733991277570,-230.17863,0.00013,2]
[345084198,1733991277598,-230.17863,0.00013,2]
[345084199,1733991277625,-151.0,0.00013,2]
[345084200,1733991277655,-30000.0,0.00013,2]
[345084201,1733991277683,-354.360571,0.00013,2]
[345084202,1733991277712,-354.360571,0.00013,2]
[345084203,1733991277742,-1135.323614,0.00013,2]
[345084204,1733991277770,-4608.807587,0.00013,2]
[345084205,1733991277810,-1135.323614,0.00013,2]
[345084206,1733991277843,-151.0,0.00013,2]
[345084207,1733991277872,-151.0,0.00013,2]
[345084208,1733991277901,-151.0,0.00013,2]
[345084209,1733991277936,-151.0,0.00013,2]
[345084210,1733991277966,-4608.807587,0.00013,2]
[345084211,1733991277997,-151.0,0.00013,2]
[345084212,1733991278028,-151.0,0.00013,2]
[345084213,1733991278057,-163.477247,0.00013,2]
[345084214,1733991278087,-688.232667,0.00013,2]
[345084215,1733991278116,-688.232667,0.00013,2]
[345084216,1733991278145,-151.0,0.00013,2]
[345084217,1733991278175,-501.256449,0.00013,2]
[345084218,1733991278208,-501.256449,0.00013,2]
[345084219,1733991278238,-217.28899,0.00013,2]
[345084220,1733991278270,-217.28899,0.00013,2]
[345084221,1733991278302,-6360.114479,0.00013,2]
[345084222,1733991278333,-6360.114479,0.00013,2]
[345084223,1733991278366,-151.0,0.00013,2]
[345084224,1733991278395,-151.0,0.00013,2]
[345084225,1733991278426,-386.992388,0.00013,2]
[345084226,1733991278457,-386.992388,0.00013,2]
[345084227,1733991278492,-331.314365,0.00013,2]
[345084228,1733991278522,-1736.021266,0.00013,2]
[345084229,1733991278553,-331.314365,0.00013,2]
[345084230,1733991278582,-1736.021266,0.00013,2]
[345084231,1733991278614,-958.818168,0.00013,2]
[345084232,1733991278645,-686.10086,0.00013,2]
[345084233,1733991278675,-958.818168,0.00013,2]
[345084234,1733991278703,-686.10086,0.00013,2]
[345084235,1733991279324,500.0,0.00010958,2]
[345084236,1733991279364,500.0,0.00010958,2]
[345084237,1733991279408,409.29750678,0.00010958,2]
[345084238,1733991279476,591.84,0.00010958,2]
[345084239,1733991279516,501.39172779,0.00010958,2]
[345084240,1733991279666,500.0,0.00010958,2]
[345084241,1733991279772,504.80864333,0.00010958,2]
[345084242,1733991279853,500.0,0.00010958,2]
[345084243,1733991279890,500.0,0.00010958,2]
[345084244,1733991279928,500.0,0.00010958,2]
[345084245,1733991279999,500.0,0.00010958,2]
[345084246,1733991280039,500.0,0.00010958,2]
[345084247,1733991280080,500.0,0.00010958,2]
[345084248,1733991280116,500.0,0.00010958,2]
[345084249,1733991280154,500.0,0.00010958,2]
[345084250,1733991280192,500.0,0.00010958,2]
[345084251,1733991280231,500.0,0.00010958,2]
[345084252,1733991280267,500.0,0.00010958,2]
[345084253,1733991280376,500.0,0.00010958,2]
[345084254,1733991280419,500.0,0.00010958,2]
[345084255,1733991280458,500.0,0.00010958,2]
[345084256,1733991280494,655.0,0.00010958,2]
[345084257,1733991280534,432.37,0.00010958,2]
[345084258,1733991280568,540.5557036,0.00010958,2]
[345084259,1733991280604,500.0,0.00010958,2]
[345084260,1733991280639,500.0,0.00010958,2]
[345084261,1733991280674,572.12,0.00010958,2]
[345084262,1733991280739,500.0,0.00010958,2]
[345084263,1733991280784,598.69,0.00010958,2]
[345084264,1733991280822,500.0,0.00010958,2]
[345084265,1733991281015,598.69,0.00010958,2]
[345084266,1733991281056,500.0,0.00010958,2]
[345084267,1733991281093,598.69,0.00010958,2]
[345084268,1733991281131,500.0,0.00010958,2]
[345084269,1733991281168,598.69,0.00010958,2]
[345084270,1733991281207,500.0,0.00010958,2]
[345084271,1733991281244,500.0,0.00010958,2]
[345084272,1733991281285,598.69,0.00010958,2]